bitfinex/quotes_SOLUSD_20251206
["timestamp","ask_amount","ask_price","bid_price","bid_amount"]
[1765053442473,0.68,132.48,132.45,10.87000675]
[1765053442846,3.99998788,132.48,132.45,7.55001887]
[1765053443246,0.68,132.47,132.45,7.55001887]
[1765053443785,0.68,132.47,132.44,16.308864]
[1765053443943,3.31998788,132.46,132.41,12.1299328]
[1765053444147,3.99998788,132.47,132.42,3.31998788]
[1765053444446,0.68,132.46,132.43,7.55105905]
[1765053444651,0.68,132.46,132.43,10.87104693]
[1765053449348,0.68,132.46,132.42,10.87171722]
[1765053449790,11.54952977,132.46,132.42,10.87171722]
[1765053449993,3.31998788,132.45,132.41,23.86104716]
[1765053450197,3.99998788,132.45,132.41,23.86104716]
[1765053450489,0.68,132.44,132.41,23.86104716]
[1765053454113,0.68,132.44,132.41,27.18103504]
[1765053461782,0.68,132.44,132.41,23.86104716]
[1765053465702,0.68,132.44,132.41,27.18103504]
[1765053477785,0.68,132.44,132.41,10.87217104]
[1765053478594,0.68,132.44,132.41,12.74251234]
[1765053479706,0.68,132.44,132.41,13.43251234]
[1765053484415,8.23937726,132.47,132.43,5.19032918]
[1765053484714,0.69,132.46,132.44,5.19032918]
[1765053485018,0.69,132.46,132.43,5.88032918]
[1765053485614,0.69,132.46,132.43,13.43135232]
[1765053488210,0.69,132.46,132.43,7.55102314]
[1765053488412,5.19032918,132.45,132.42,16.308864]
[1765053489034,0.69,132.44,132.42,16.308864]
[1765053489330,0.69,132.44,132.41,5.19032918]
[1765053489501,0.69,132.44,132.41,12.74239671]
[1765053490007,0.69,132.44,132.41,13.43239671]
[1765053490202,0.69,132.44,132.41,12.74239671]
[1765053490429,0.69,132.44,132.41,13.43239671]
[1765053493332,0.69,132.44,132.41,12.74239671]
[1765053493932,0.69,132.44,132.41,7.55206753]
[1765053495333,0.69,132.44,132.41,13.43239671]
[1765053499042,0.69,132.44,132.41,12.74239671]
[1765053499537,0.69,132.44,132.41,13.43239671]
[1765053508661,0.69,132.44,132.42,5.19032918]
[1765053510554,15.76989958,132.46,132.43,0.72]
[1765053510756,0.67,132.45,132.43,0.72]
[1765053511361,0.67,132.45,132.42,12.74190442]
[1765053511665,8.2200627,132.45,132.42,8.27157524]
[1765053511868,8.2200627,132.45,132.42,13.46190442]
[1765053512046,0.67,132.44,132.42,13.46190442]
[1765053526087,0.67,132.44,132.42,12.74190442]
[1765053526289,0.67,132.44,132.42,5.19032918]
[1765053526493,8.28,132.43,132.39,5.19032918]
[1765053526688,13.47032918,132.43,132.38,5.91032918]
[1765053526884,0.67,132.42,132.38,5.91032918]
[1765053527177,0.67,132.42,132.36,8.28]
[1765053527178,5.19032918,132.41,132.36,13.46509491]
[1765053527592,0.67,132.4,132.36,13.46509491]
[1765053528276,0.67,132.4,132.36,12.74509491]
[1765053528578,0.67,132.4,132.37,0.72]
[1765053529081,0.67,132.4,132.36,7.55476573]
[1765053529389,0.67,132.4,132.36,13.46509491]
[1765053529985,8.22298814,132.4,132.36,13.46509491]
[1765053530162,13.41331732,132.4,132.35,29.05471292]
[1765053530363,0.69,132.39,132.35,29.05471292]
[1765053530664,0.69,132.39,132.35,29.73471292]
[1765053530976,0.69,132.39,132.35,29.05471292]
[1765053531169,0.69,132.39,132.36,0.68]
[1765053531366,5.88032918,132.39,132.35,8.23551974]
[1765053531588,5.88032918,132.39,132.35,7.55551974]
[1765053531781,0.7,132.38,132.35,7.55551974]
[1765053532157,0.7,132.38,132.35,8.23551974]
[1765053535875,8.25423693,132.38,132.34,12.9465835]
[1765053536191,8.25423693,132.38,132.34,13.6265835]
[1765053536392,0.7,132.37,132.34,13.6265835]
[1765053536771,0.7,132.37,132.35,0.68]
[1765053538785,0.7,132.37,132.34,11.08120654]
[1765053538983,0.7,132.37,132.34,11.76120654]
[1765053539883,19.85958531,132.37,132.34,0.2]
[1765053540406,0.7,132.36,132.34,0.2]
[1765053542497,4.02495222,132.36,132.34,0.2]
[1765053542794,0.7,132.35,132.34,0.2]
[1765053543493,23.39149518,132.37,132.34,0.2]
[1765053543701,0.7,132.36,132.34,0.2]
[1765053547202,7.55686209,132.37,132.34,11.76107517]
[1765053547393,7.55287009,132.4,132.36,3.32495222]
[1765053547589,7.55287009,132.4,132.37,3.32495222]
[1765053547776,8.25287009,132.4,132.37,3.32495222]
[1765053547978,8.25287009,132.4,132.37,4.00495222]
[1765053548701,8.25287009,132.4,132.38,3.32495222]
[1765053549204,8.25287009,132.4,132.37,0.68]
[1765053549405,0.7,132.39,132.37,4.00495222]
[1765053550798,0.7,132.39,132.37,3.32495222]
[1765053550971,0.7,132.39,132.37,4.00495222]
[1765053552081,0.7,132.39,132.36,10.87972579]
[1765053552489,0.7,132.39,132.36,11.55972579]
[1765053554708,8.25352168,132.39,132.36,3.32495222]
[1765053555000,8.25352168,132.39,132.35,3.32495222]
[1765053555207,0.7,132.38,132.35,4.00495222]
[1765053555578,0.7,132.38,132.35,3.32495222]
[1765053555781,0.7,132.38,132.35,4.00495222]
[1765053556479,0.7,132.38,132.35,11.56066024]
[1765053557314,0.7,132.38,132.36,0.68]
[1765053560200,0.7,132.38,132.35,11.58066024]
[1765053562106,0.7,132.38,132.35,10.88066024]
[1765053562313,0.68,132.4,132.37,3.32495222]
[1765053562617,8.96,132.41,132.38,4.02495222]
[1765053562910,8.96,132.41,132.38,0.7]
[1765053563092,8.28,132.41,132.37,3.32495222]
[1765053563405,0.68,132.4,132.38,7.55401117]
[1765053563581,8.96,132.41,132.38,8.25401117]
[1765053564491,0.68,132.4,132.38,8.25401117]
[1765053564690,8.28,132.41,132.39,0.7]
[1765053564691,8.96,132.41,132.39,0.7]
[1765053564986,8.96,132.41,132.38,10.87896339]
[1765053565201,0.68,132.4,132.38,7.55401117]
[1765053565386,0.68,132.4,132.38,8.25401117]
[1765053568106,0.68,132.4,132.38,11.57896339]
[1765053569911,8.28,132.41,132.38,11.57896339]
[1765053570119,8.96,132.41,132.38,11.57896339]
[1765053570491,0.68,132.4,132.38,11.57896339]
[1765053571810,0.68,132.4,132.37,8.25458185]
[1765053571998,0.68,132.4,132.38,3.32495222]
[1765053572201,0.68,132.4,132.38,4.02495222]
[1765053574613,0.68,132.4,132.38,8.25363678]
[1765053576915,8.96,132.41,132.38,11.578589]
[1765053577116,104.98,132.43,132.4,3.32495222]
[1765053577505,104.98,132.43,132.4,4.02495222]
[1765053577922,0.68,132.42,132.4,4.02495222]
[1765053578099,0.68,132.42,132.4,11.57731044]
[1765053581701,0.68,132.42,132.4,8.25235822]
[1765053582213,0.68,132.42,132.4,7.55235822]
[1765053582421,0.68,132.42,132.39,7.55319905]
[1765053585930,0.68,132.42,132.39,11.57815127]
[1765053587632,0.68,132.43,132.4,4.02495222]
[1765053589343,0.68,132.43,132.4,11.57726401]
[1765053593434,8.28,132.44,132.41,4.00495222]
[1765053593651,8.95,132.44,132.41,11.55675387]
[1765053596635,0.67,132.47,132.42,4.00495222]
[1765053596940,0.67,132.46,132.43,3.32495222]
[1765053597130,0.67,132.46,132.43,4.00495222]
[1765053598117,0.67,132.46,132.44,7.55058894]
[1765053598725,0.67,132.46,132.44,8.23058894]
[1765053599251,0.67,132.46,132.44,7.55058894]
[1765053599840,0.67,132.46,132.44,8.21058894]
[1765053600636,0.67,132.46,132.44,7.55058894]
[1765053601965,0.67,132.46,132.44,12.73855643]
[1765053604854,8.95,132.47,132.44,32.27502879]
[1765053605169,8.95,132.47,132.45,5.18796749]
[1765053606451,8.95,132.47,132.45,12.73751301]
[1765053606962,0.67,132.46,132.42,35.18741099]
[1765053607169,0.67,132.46,132.42,40.37537848]
[1765053607672,0.67,132.46,132.42,41.03537848]
[1765053607889,0.67,132.46,132.42,16.308864]
[1765053608050,0.67,132.46,132.42,29.04818956]
[1765053609571,0.67,132.46,132.42,29.70818956]
[1765053610973,0.67,132.46,132.43,5.18796749]
[1765053611457,8.28,132.47,132.45,5.18796749]
[1765053611857,0.77,132.49,132.46,5.84796749]
[1765053612676,0.77,132.49,132.46,12.73725607]
[1765053613672,0.1,132.49,132.47,5.84796749]
[1765053614680,0.77,132.49,132.47,5.84796749]
[1765053615878,0.77,132.49,132.47,13.39630738]
[1765053616378,0.1,132.49,132.47,13.39630738]
[1765053616885,0.77,132.49,132.47,13.39630738]
[1765053617182,0.77,132.49,132.48,5.18796749]
[1765053617885,0.77,132.49,132.48,12.73627666]
[1765053620494,0.77,132.49,132.47,12.73661694]
[1765053621680,0.1,132.49,132.48,5.18796749]
[1765053622680,0.1,132.49,132.48,12.73627666]
[1765053622869,0.76,132.49,132.48,12.73627666]
[1765053623072,0.1,132.49,132.48,12.73627666]
[1765053631192,0.1,132.49,132.48,13.40627666]
[1765053631583,0.1,132.49,132.48,12.73627666]
[1765053641399,0.1,132.49,132.48,7.54830917]
[1765053641571,0.1,132.49,132.48,12.73627666]
[1765053651207,0.1,132.49,132.48,13.40627666]
[1765053651889,0.1,132.49,132.48,12.73627666]
[1765053660409,0.1,132.49,132.48,10.86614081]
[1765053661309,0.1,132.49,132.48,11.52614081]
[1765053661510,0.1,132.49,132.48,36.64494973]
[1765053662101,0.1,132.49,132.48,45.64494973]
[1765053666218,0.1,132.49,132.48,29.83608573]
[1765053666716,0.1,132.51,132.49,8.80994492]
[1765053667018,0.1,132.51,132.5,3.31783164]
[1765053667315,0.1,132.51,132.5,6.99840932]
[1765053668319,0.1,132.51,132.5,14.54557913]
[1765053672322,0.1,132.51,132.5,39.13444313]
[1765053673529,0.1,132.51,132.5,35.81661149]
[1765053673826,0.1,132.51,132.5,39.13444313]
[1765053675523,0.1,132.51,132.5,36.11386545]
[1765053676999,0.1,132.51,132.5,35.98381037]
[1765053677201,0.82,132.51,132.5,7.54716981]
[1765053677924,0.82,132.51,132.49,10.86536608]
[1765053683010,0.82,132.51,132.49,7.54753444]
[1765053684818,0.82,132.51,132.48,0.5]
[1765053685024,4.13783164,132.51,132.47,19.62669564]
[1765053685523,0.67,132.5,132.47,27.17521267]
[1765053686644,0.67,132.5,132.48,0.5]
[1765053687927,0.67,132.5,132.48,11.36613103]
[1765053688838,0.67,132.5,132.48,8.04829939]
[1765053689742,0.67,132.5,132.48,0.5]
[1765053690445,3.98783164,132.5,132.48,0.5]
[1765053690640,0.67,132.49,132.47,7.54864548]
[1765053691342,0.17,132.49,132.47,7.54864548]
[1765053692347,0.17,132.49,132.47,8.04864548]
[1765053693851,0.17,132.49,132.47,11.36647712]
[1765053696542,0.1,132.51,132.48,4.02783164]
[1765053696744,0.77,132.51,132.48,4.02783164]
[1765053696953,0.1,132.51,132.49,4.02783164]
[1765053697151,0.1,132.51,132.5,4.02783164]
[1765053698630,0.1,132.51,132.5,11.57500145]
[1765053704150,0.1,132.51,132.5,12.07500145]
[1765053715188,0.8,132.51,132.5,0.5]
[1765053715389,0.8,132.51,132.46,8.80994492]
[1765053715661,8.28,132.5,132.47,3.31783164]
[1765053716043,0.7,132.49,132.47,3.31783164]
[1765053717452,0.7,132.49,132.46,3.31783164]
[1765053717453,8.24776497,132.49,132.46,3.31783164]
[1765053717856,0.7,132.48,132.46,3.31783164]
[1765053718050,0.7,132.48,132.45,3.31783164]
[1765053718868,8.24834033,132.48,132.45,3.31783164]
[1765053719371,0.7,132.47,132.45,3.31783164]
[1765053719965,0.7,132.47,132.44,23.85923896]
[1765053720155,0.7,132.47,132.45,3.31783164]
[1765053720359,0.7,132.47,132.45,5.18744022]
[1765053721345,0.7,132.47,132.44,24.57923896]
[1765053721545,0.7,132.47,132.45,5.18744022]
[1765053722668,29.29471785,132.5,132.45,12.7369993]
[1765053722878,0.7,132.49,132.46,5.90744022]
[1765053723564,0.7,132.49,132.46,13.45669561]
[1765053723962,8.28,132.5,132.47,5.18744022]
[1765053724270,8.98,132.5,132.47,5.90744022]
[1765053724867,0.7,132.49,132.47,5.90744022]
[1765053725270,0.7,132.49,132.47,13.45588069]
[1765053726567,0.7,132.49,132.47,8.26844047]
[1765053726772,0.7,132.49,132.47,13.45588069]
[1765053728076,8.98,132.5,132.47,13.45588069]
[1765053729253,0.7,132.49,132.47,12.73588069]
[1765053730759,8.28,132.5,132.47,13.45588069]
[1765053730957,8.28,132.5,132.48,5.90744022]
[1765053731369,8.28,132.5,132.48,0.72]
[1765053731370,8.98,132.5,132.48,0.72]
[1765053731582,8.98,132.5,132.47,13.45588069]
[1765053732384,8.98,132.5,132.48,5.18744022]
[1765053732570,8.28,132.5,132.49,5.18744022]
[1765053732771,8.28,132.5,132.49,5.90744022]
[1765053733179,8.28,132.5,132.49,5.18744022]
[1765053734061,0.1,132.51,132.49,5.90744022]
[1765053734267,0.1,132.51,132.5,5.90744022]
[1765053734665,0.8,132.51,132.49,5.18744022]
[1765053734866,0.8,132.51,132.48,13.45556578]
[1765053735068,0.8,132.51,132.48,12.73556578]
[1765053735290,0.8,132.51,132.48,13.45556578]
[1765053738076,0.8,132.51,132.49,5.18744022]
[1765053738895,0.8,132.51,132.49,12.73516707]
[1765053742795,0.8,132.51,132.49,13.38516707]
[1765053742991,0.1,132.51,132.49,13.38516707]
[1765053743290,0.77,132.51,132.49,13.38516707]
[1765053744779,0.77,132.51,132.49,12.73516707]
[1765053746091,0.1,132.51,132.49,12.73516707]
[1765053746318,0.1,132.51,132.49,13.38516707]
[1765053746896,0.1,132.51,132.5,5.18744022]
[1765053747594,0.77,132.51,132.49,12.73516707]
[1765053747896,0.77,132.51,132.49,5.18744022]
[1765053749202,0.77,132.51,132.5,5.18744022]
[1765053749203,0.1,132.51,132.5,5.18744022]
[1765053749498,0.1,132.51,132.5,5.83744022]
[1765053749790,0.1,132.51,132.5,5.18744022]
[1765053754796,0.1,132.51,132.5,12.73461003]
[1765053755385,0.1,132.51,132.5,13.38461003]
[1765053777128,0.1,132.51,132.5,16.40564397]
[1765053781202,0.1,132.51,132.5,13.38461003]
[1765053781921,0.1,132.51,132.5,16.40564397]
[1765053782426,0.1,132.51,132.5,14.53500383]
[1765053784439,0.1,132.51,132.5,11.21820375]
[1765053784607,0.1,132.51,132.5,11.51396989]
[1765053787644,0.1,132.51,132.5,36.63277881]
[1765053787826,0.1,132.51,132.5,39.6535846]
[1765053794036,0.1,132.51,132.5,26.66152068]
[1765053798241,0.1,132.51,132.5,23.3447206]
[1765053798938,0.1,132.51,132.5,39.0035846]
[1765053799140,0.1,132.51,132.5,39.6735846]
[1765053799327,0.1,132.51,132.5,10.86396989]
[1765053799533,0.1,132.51,132.5,27.17283389]
[1765053799839,0.1,132.51,132.5,10.86396989]
[1765053800038,0.1,132.51,132.5,27.84283389]
[1765053803944,0.1,132.51,132.5,36.65277881]
[1765053804153,0.1,132.51,132.5,42.99015657]
[1765053804354,0.1,132.51,132.5,34.96129257]
[1765053807158,1e-08,132.51,132.5,34.96129257]
[1765053813259,0.1,132.52,132.51,8.80994492]
[1765053813466,0.1,132.52,132.51,26.06394532]
[1765053813965,0.1,132.52,132.51,29.08406687]
[1765053814646,0.1,132.52,132.51,36.63066712]
[1765053819956,0.1,132.53,132.51,37.38532714]
[1765053820162,0.1,132.53,132.52,28.57566408]
[1765053820560,0.1,132.54,132.52,24.09686655]
[1765053820750,0.1,132.55,132.54,28.435609]
[1765053820941,0.1,132.55,132.54,36.715609]
[1765053821142,0.1,132.55,132.54,40.40504662]
[1765053821637,0.1,132.55,132.54,47.94993872]
[1765053825550,0.1,132.58,132.57,25.11880892]
[1765053825860,0.1,132.58,132.57,28.435609]
[1765053826261,0.1,132.58,132.57,31.45481872]
[1765053827371,0.1,132.58,132.57,38.99800345]
[1765053829452,0.1,132.58,132.57,39.66800345]
[1765053830074,0.1,132.58,132.57,38.99800345]
[1765053830669,0.1,132.58,132.57,39.71800345]
[1765053831776,0.1,132.58,132.57,43.03480353]
[1765053833279,0.1,132.59,132.57,43.03480353]
[1765053833479,0.1,132.59,132.58,23.17621593]
[1765053833855,0.1,132.59,132.58,26.19496993]
[1765053834059,0.1,132.61,132.6,25.11880892]
[1765053834259,0.1,132.61,132.6,28.435609]
[1765053834466,0.1,132.61,132.6,29.155609]
[1765053834672,0.1,132.61,132.6,32.17390743]
[1765053835181,0.1,132.61,132.6,38.99538555]
[1765053835365,0.75,132.61,132.6,38.99538555]
[1765053837879,0.1,132.61,132.6,38.99538555]
[1765053840480,0.1,132.61,132.6,35.67858547]
[1765053840687,0.1,132.61,132.6,38.99538555]
[1765053842457,0.1,132.61,132.6,40.85206131]
[1765053847995,0.8,132.61,132.6,32.04211639]
[1765053848177,0.8,132.61,132.6,29.02381796]
[1765053849065,0.1,132.61,132.6,29.02381796]
[1765053856890,0.1,132.61,132.6,23.85034212]
[1765053857075,0.1,132.61,132.6,29.02381796]
[1765053858799,0.8,132.61,132.6,29.02381796]
[1765053858996,0.8,132.61,132.59,7.54186047]
[1765053859179,0.8,132.61,132.59,12.71533631]
[1765053859500,0.8,132.61,132.6,7.54147812]
[1765053862477,0.8,132.61,132.6,5.17347584]
[1765053863592,0.8,132.61,132.6,12.71495396]
[1765053866812,0.8,132.61,132.6,7.54147812]
[1765053880025,0.8,132.61,132.6,5.17347584]
[1765053887531,0.1,132.61,132.59,12.71552275]
[1765053887708,0.79,132.61,132.59,12.71552275]
[1765053887900,0.79,132.61,132.59,13.40552275]
[1765053893732,0.1,132.61,132.59,13.40552275]
[1765053894042,0.1,132.61,132.6,5.17347584]
[1765053899213,0.1,132.61,132.59,13.40552275]
[1765053900324,0.1,132.61,132.6,5.86347584]
[1765053900737,0.1,132.61,132.6,21.14317948]
[1765053902545,0.1,132.61,132.6,28.6846576]
[1765053904432,0.1,132.61,132.6,26.82253832]
[1765053904947,0.1,132.61,132.6,35.63248324]
[1765053908041,0.1,132.61,132.6,43.91248324]
[1765053909043,0.1,132.62,132.6,43.91248324]
[1765053909250,0.1,132.62,132.61,4.00135656]
[1765053909747,0.1,132.62,132.61,7.01942725]
[1765053911528,0.1,132.62,132.61,14.56033668]
[1765053911723,0.1,132.62,132.61,30.86920068]
[1765053916127,0.1,132.62,132.61,14.56033668]
[1765053925263,0.8,132.62,132.61,13.87033668]
[1765053925639,0.8,132.62,132.61,10.85226599]
[1765053927472,0.8,132.62,132.6,13.96915082]
[1765053927672,8.34043013,132.62,132.59,16.308864]
[1765053927889,19.29156429,132.62,132.59,16.308864]
[1765053928102,0.7,132.61,132.59,16.308864]
[1765053929201,0.7,132.61,132.58,7.54206606]
[1765053931298,4.01135656,132.61,132.58,7.54206606]
[1765053931499,0.7,132.6,132.58,7.54206606]
[1765053935230,0.7,132.6,132.58,11.53342262]
[1765053947039,0.1,132.62,132.58,11.53342262]
[1765053947242,0.7,132.61,132.58,11.53342262]
[1765053949440,0.7,132.61,132.58,11.03342262]
[1765053961240,0.7,132.61,132.58,7.72206606]
[1765053961653,0.7,132.61,132.58,7.70206606]
[1765053967152,0.7,132.61,132.58,12.87904819]
[1765053973555,0.7,132.61,132.58,7.70206606]
[1765053979291,0.7,132.61,132.59,0.66]
[1765053982190,0.7,132.61,132.59,8.20203265]
[1765053984793,0.7,132.61,132.59,7.54203265]
[1765053984968,21.69814461,132.61,132.57,16.308864]
[1765053985174,5.17698213,132.6,132.57,16.308864]
[1765053985391,5.17698213,132.59,132.55,0.69]
[1765053985701,5.17698213,132.58,132.53,21.69222887]
[1765053985890,5.88698213,132.58,132.54,0.69]
[1765053986203,5.88698213,132.57,132.53,24.54411074]
[1765053986707,0.71,132.56,132.53,24.54411074]
[1765053986992,5.17698213,132.55,132.51,0.69]
[1765053987165,5.17698213,132.55,132.52,16.308864]
[1765053987373,0.71,132.54,132.52,16.308864]
[1765053987584,0.71,132.54,132.51,8.2365304]
[1765053988381,0.71,132.54,132.52,0.69]
[1765053988991,8.25454728,132.55,132.52,0.69]
[1765053990401,0.71,132.54,132.51,7.5465304]
[1765053990578,13.43152941,132.55,132.52,0.69]
[1765053990894,14.16698213,132.54,132.49,12.72463096]
[1765053991200,14.16698213,132.54,132.49,24.54651283]
[1765053991372,0.71,132.53,132.49,24.54651283]
[1765053991791,8.2557973,132.53,132.49,24.54651283]
[1765053992373,0.71,132.52,132.49,24.54651283]
[1765053994299,8.99,132.54,132.51,5.17698213]
[1765053994677,8.99,132.54,132.51,5.86698213]
[1765053994977,8.28,132.54,132.52,0.69]
[1765053995179,8.99,132.54,132.51,5.86698213]
[1765053995996,8.99,132.54,132.51,13.4135706]
[1765053999276,8.99,132.54,132.51,8.23658847]
[1765054000304,0.71,132.53,132.49,29.72312224]
[1765054000600,5.88698213,132.53,132.49,22.17584613]
[1765054001098,0.71,132.52,132.49,22.17584613]
[1765054001301,8.25596416,132.53,132.5,0.69]
[1765054002396,7.54596416,132.53,132.5,5.86698213]
[1765054002600,8.25596416,132.53,132.5,5.86698213]
[1765054002784,8.25596416,132.53,132.5,0.69]
[1765054003407,15.82508308,132.54,132.5,13.41411324]
[1765054003612,18.85851983,132.57,132.53,5.17698213]
[1765054003786,7.54318473,132.57,132.55,5.17698213]
[1765054003989,7.54318473,132.57,132.55,5.86698213]
[1765054004283,8.25318473,132.57,132.55,5.86698213]
[1765054004486,8.25318473,132.57,132.55,5.17698213]
[1765054004878,8.25318473,132.57,132.54,5.86698213]
[1765054005695,7.54318473,132.57,132.55,0.69]
[1765054007813,15.82263753,132.58,132.56,5.17698213]
[1765054008197,15.82263753,132.58,132.56,5.86698213]
[1765054010413,15.82263753,132.58,132.56,5.82698213]
[1765054011310,8.28,132.58,132.56,5.82698213]
[1765054011491,104.3,132.59,132.57,5.82698213]
[1765054011692,104.3,132.59,132.58,5.17698213]
[1765054011916,104.3,132.59,132.58,5.82698213]
[1765054012624,16.50098221,132.61,132.58,5.82698213]
[1765054015198,0.67,132.6,132.58,5.85698213]
[1765054015994,16.49098221,132.61,132.58,5.85698213]
[1765054017317,15.82098221,132.61,132.58,5.17698213]
[1765054017500,16.49098221,132.61,132.58,5.85698213]
[1765054018022,0.67,132.6,132.58,5.17698213]
[1765054018815,0.67,132.59,132.56,7.54375377]
[1765054019025,0.67,132.59,132.56,0.68]
[1765054019624,0.67,132.59,132.55,29.02996957]
[1765054019796,0.67,132.59,132.55,29.70996957]
[1765054019998,0.67,132.59,132.52,27.67442596]
[1765054019999,8.28,132.58,132.54,12.72174584]
[1765054020199,0.67,132.57,132.54,5.17698213]
[1765054020395,8.28,132.58,132.56,5.17698213]
[1765054020630,8.28,132.58,132.56,5.85698213]
[1765054021335,8.28,132.58,132.57,5.85698213]
[1765054021556,8.28,132.6,132.57,5.85698213]
[1765054021702,8.28,132.6,132.59,5.17698213]
[1765054022107,8.28,132.6,132.58,5.17698213]
[1765054022314,8.95,132.6,132.58,5.17698213]
[1765054023202,8.28,132.6,132.58,5.85698213]
[1765054025532,8.28,132.6,132.59,5.85698213]
[1765054026210,8.28,132.6,132.59,5.17698213]
[1765054026540,8.28,132.6,132.59,3.31254094]
[1765054026831,8.28,132.6,132.59,3.99254094]
[1765054027640,0.1,132.62,132.59,11.53458785]
[1765054027858,9.05,132.62,132.6,3.31254094]
[1765054028047,8.38,132.62,132.6,3.31254094]
[1765054028229,8.38,132.62,132.6,3.99254094]
[1765054028851,0.1,132.62,132.61,3.99254094]
[1765054029753,0.1,132.62,132.61,11.53345037]
[1765054040259,0.78,132.62,132.56,27.80835706]
[1765054040447,0.78,132.62,132.59,3.31254094]
[1765054040646,0.78,132.62,132.58,11.52482227]
[1765054041443,0.78,132.62,132.59,0.67]
[1765054042961,8.32043283,132.62,132.58,7.54228133]
[1765054043140,8.32043283,132.62,132.57,27.83435935]
[1765054043337,0.68,132.61,132.57,27.16435935]
[1765054043559,0.68,132.61,132.58,0.67]
[1765054044066,8.22093959,132.61,132.57,23.85181841]
[1765054044264,8.22093959,132.61,132.57,24.52181841]
[1765054044474,0.68,132.6,132.57,24.52181841]
[1765054046665,0.68,132.6,132.57,23.85181841]
[1765054047381,10.85348053,132.61,132.58,0.67]
[1765054047539,11.53348053,132.61,132.58,0.67]
[1765054050379,19.81348053,132.61,132.58,0.67]
[1765054050571,16.50093959,132.61,132.58,8.21257029]
[1765054050874,8.96,132.61,132.58,8.21257029]
[1765054061163,16.50091904,132.61,132.58,8.21257029]
[1765054062589,16.50091904,132.61,132.58,0.67]
[1765054066567,15.82091904,132.61,132.57,27.16435792]
[1765054066768,0.68,132.6,132.57,24.52181698]
[1765054067277,0.68,132.6,132.57,23.85181698]
[1765054067476,0.68,132.6,132.58,0.67]
[1765054068484,19.81345998,132.61,132.58,0.67]
[1765054069113,0.68,132.6,132.57,23.85181698]
[1765054069291,0.68,132.6,132.57,24.52181698]
[1765054070090,0.68,132.6,132.56,7.54331761]
[1765054070091,3.31254094,132.59,132.56,7.54331761]
[1765054070382,0.7,132.58,132.56,8.24331761]
[1765054070568,11.59254094,132.58,132.54,0.7]
[1765054070771,12.29254094,132.58,132.55,0.7]
[1765054071780,19.83537142,132.58,132.55,0.7]
[1765054072078,8.28,132.58,132.55,11.5565061]
[1765054072476,8.28,132.58,132.56,0.7]
[1765054073175,8.28,132.58,132.56,8.24359677]
[1765054075993,8.28,132.58,132.56,0.7]
[1765054076194,8.98,132.58,132.55,8.21410466]
[1765054076372,12.29254094,132.58,132.55,8.21410466]
[1765054076568,4.01254094,132.57,132.53,16.978864]
[1765054076782,3.31254094,132.56,132.53,16.978864]
[1765054076980,4.01254094,132.56,132.53,16.978864]
[1765054077892,11.55655731,132.56,132.53,16.978864]
[1765054078898,8.24318473,132.57,132.54,0.67]
[1765054079195,11.55572567,132.57,132.54,0.67]
[1765054081367,7.54318473,132.57,132.54,0.67]
[1765054081572,8.28,132.57,132.54,11.52736109]
[1765054081876,8.28,132.57,132.55,3.98254094]
[1765054082100,15.82220053,132.59,132.55,3.98254094]
[1765054082268,16.52220053,132.59,132.56,0.67]
[1765054084876,19.83474147,132.59,132.56,0.67]
[1765054087093,4.01254094,132.58,132.55,0.67]
[1765054088503,5.88016999,132.58,132.55,0.67]
[1765054089303,13.42325921,132.58,132.55,0.67]
[1765054089602,0.7,132.57,132.54,0.67]